fUST/lending_fUST_20250211
["ID","MTS","AMOUNT","RATE_DAILY","PERIOD"]
[352718814,1739271067655,-500.0,0.00011643,2]
[352718815,1739271067665,-500.0,0.00011643,2]
[352718816,1739271067675,-577.23,0.00011643,2]
[352718817,1739271067684,-500.0,0.00011643,2]
[352718818,1739271067695,-832.66,0.00011643,2]
[352718819,1739271067704,-500.0,0.00011643,2]
[352718820,1739271067714,-500.0,0.00011643,2]
[352718821,1739271067724,-500.0,0.00011643,2]
[352718822,1739271067734,-500.0,0.00011643,2]
[352718823,1739271067744,-500.0,0.00011643,2]
[352718824,1739271067754,-500.0,0.00011643,2]
[352718825,1739271067764,-1026.39,0.00011643,2]
[352718826,1739271067774,-1889.25,0.00011643,2]
[352718827,1739271067784,-500.0,0.00011643,2]
[352718828,1739271067794,-500.0,0.00011643,2]
[352718829,1739271067803,-1918.89,0.00011643,2]
[352718830,1739271067812,-500.0,0.00011643,2]
[352718831,1739271067823,-500.0,0.00011643,2]
[352718832,1739271067834,-500.0,0.00011643,2]
[352718833,1739271067851,-500.0,0.00011643,2]
[352718834,1739271067862,-500.0,0.00011643,2]
[352718835,1739271067872,-632.41,0.00011643,2]
[352718836,1739271067882,-524.7,0.00011643,2]
[352718837,1739271067893,-500.0,0.00011643,2]
[352718838,1739271067903,-500.0,0.00011643,2]
[352718839,1739271067912,-73.77123471,0.00011643,2]
[352718843,1739271329733,1000.0,0.00016,120]
[352718848,1739272003093,-158.79623891,9.898e-05,2]
[352719320,1739272240546,-3275.1977718,9.997e-05,2]
[352719321,1739272240558,-6711.9896156,0.00010048,2]
[352719322,1739272240569,-396.0,0.00010489,2]
[352719323,1739272240580,-211.278,0.0001054,2]
[352719324,1739272240590,-153.968,0.00010595,2]
[352719325,1739272240603,-150.0,0.00010595,2]
[352719326,1739272240614,-538.0,0.00010595,2]
[352719327,1739272240626,-1973.0,0.00010595,2]
[352719328,1739272240637,-2295.0,0.00010595,2]
[352719329,1739272240648,-400.0,0.00010685,2]
[352719330,1739272240660,-781.0,0.000109,3]
[352719331,1739272240671,-489.33392192,0.00010957,2]
[352719332,1739272240682,-500.0,0.00010957,2]
[352719333,1739272240693,-261.049758,0.00010957,2]
[352719334,1739272240705,-500.0,0.00010957,2]
[352719335,1739272240716,-200.09968645,0.00010957,2]
[352719336,1739272240726,-500.0,0.00010958,2]
[352719337,1739272240738,-500.3549263,0.00010958,2]
[352719338,1739272240750,-500.0,0.00010958,2]
[352719339,1739272240761,-500.0,0.00010958,2]
[352719340,1739272240772,-500.0,0.00010958,2]
[352719341,1739272240783,-500.0,0.00010958,2]
[352719342,1739272240794,-500.30570631,0.00010958,2]
[352719343,1739272240806,-500.42046561,0.00010958,2]
[352719344,1739272240817,-500.8993608,0.00010958,2]
[352719345,1739272240829,-500.0,0.00010958,2]
[352719346,1739272240840,-268.29629752,0.00010958,2]
[352719347,1739272240851,-500.0,0.00010958,2]
[352719348,1739272240862,-500.43160269,0.00010958,2]
[352719349,1739272240874,-500.29700202,0.00010958,2]
[352719350,1739272240885,-500.0,0.00010958,2]
[352719351,1739272240897,-500.0,0.00010958,2]
[352719352,1739272240908,-500.0,0.00010958,2]
[352719353,1739272240919,-500.0,0.00010958,2]
[352719354,1739272240932,-515.71912626,0.00010958,2]
[352719355,1739272240943,-500.0,0.00010958,2]
[352719356,1739272240954,-500.42759015,0.00010958,2]
[352719357,1739272240966,-500.29105014,0.00010958,2]
[352719358,1739272240977,-500.71912614,0.00010958,2]
[352719359,1739272240988,-500.0,0.00010958,2]
[352719360,1739272241000,-500.23387821,0.00010958,2]
[352719361,1739272241014,-500.0,0.00010958,2]
[352719362,1739272241025,-500.62382215,0.00010958,2]
[352719363,1739272241036,-500.0,0.00010958,2]
[352719364,1739272241048,-500.0,0.00010958,2]
[352719365,1739272241059,-500.24062171,0.00010958,2]
[352719366,1739272241070,-502.25602764,0.00010958,2]
[352719367,1739272241082,-500.0,0.00010958,2]
[352719368,1739272241094,-500.0,0.00010958,2]
[352719369,1739272241105,-500.0,0.00010958,2]
[352719370,1739272241116,-529.07423937,0.00010958,2]
[352719371,1739272241127,-244.57335173,0.00010958,2]
[352719372,1739272241138,-500.0,0.00010958,2]
[352719373,1739272241149,-505.89987204,0.00010958,2]
[352719374,1739272241160,-623.49,0.00010958,2]
[352719375,1739272241171,-500.0,0.00010958,2]
[352719376,1739272241183,-500.0,0.00010958,2]
[352719377,1739272241194,-500.0,0.00010958,2]
[352719378,1739272241205,-500.0,0.00010958,2]
[352719379,1739272241216,-500.0,0.00010958,2]
[352719380,1739272241227,-508.5154009,0.00010958,2]
[352719381,1739272241238,-624.49,0.00010958,2]
[352719382,1739272241250,-500.0,0.00010958,2]
[352719383,1739272241261,-500.0,0.00010958,2]
[352719384,1739272241272,-500.0,0.00010958,2]
[352719385,1739272241283,-500.0,0.00010958,2]
[352719386,1739272241294,-350.13349263,0.00010958,2]
[352719387,1739272241306,-500.0,0.00010958,2]
[352719388,1739272241317,-607.67460111,0.00010958,2]
[352719389,1739272241328,-500.0,0.00010958,2]
[352719390,1739272241339,-500.0,0.00010958,2]
[352719391,1739272241350,-500.0,0.00010958,2]
[352719392,1739272241361,-627.02,0.00010958,2]
[352719393,1739272241373,-500.0,0.00010958,2]
[352719394,1739272241386,-500.0,0.00010958,2]
[352719395,1739272241397,-500.0,0.00010958,2]
[352719396,1739272241409,-500.0,0.00010958,2]
[352719397,1739272241420,-500.0,0.00010958,2]
[352719398,1739272241432,-500.0,0.00010958,2]
[352719399,1739272241444,-500.0,0.00010958,2]
[352719400,1739272241456,-703.22,0.00010958,2]
[352719401,1739272241468,-500.0,0.00010958,2]
[352719402,1739272241478,-500.0,0.00010958,2]
[352719403,1739272241488,-500.0,0.00010958,2]
[352719404,1739272241498,-500.0,0.00010958,2]
[352719405,1739272241507,-500.0,0.00010958,2]
[352719406,1739272241517,-500.0,0.00010958,2]
[352719407,1739272241527,-501.09828141,0.00010958,2]
[352719408,1739272241537,-500.0,0.00010958,2]
[352719409,1739272241546,-500.0,0.00010958,2]
[352719410,1739272241768,-500.0,0.00010958,2]
[352719411,1739272241793,-500.0,0.00010958,2]
[352719412,1739272241804,-582.77,0.00010958,2]
[352719413,1739272241815,-500.0,0.00010958,2]
[352719414,1739272241824,-500.0,0.00010958,2]
[352719415,1739272241834,-873.66,0.00010958,2]
[352719416,1739272241843,-615.37928136,0.00010958,2]
[352719417,1739272241852,-500.0,0.00010958,2]
[352719418,1739272241862,-500.0,0.00010958,2]
[352719419,1739272241872,-500.0,0.00010958,2]
[352719420,1739272241882,-501.87,0.00010958,2]
[352719421,1739272241891,-500.0,0.00010958,2]
[352719422,1739272241901,-500.0,0.00010958,2]
[352719423,1739272241911,-585.68,0.00010958,2]
[352719424,1739272241921,-500.0,0.00010958,2]
[352719425,1739272241931,-500.0,0.00010958,2]
[352719426,1739272241941,-1162.02,0.00010958,2]
[352719427,1739272241951,-500.0,0.00010958,2]
[352719428,1739272241961,-500.0,0.00010958,2]
[352719429,1739272241971,-871.8,0.00010958,2]
[352719430,1739272241980,-500.0,0.00010958,2]
[352719431,1739272241990,-500.0,0.00010958,2]
[352719432,1739272242000,-500.0,0.00010958,2]
[352719433,1739272242014,-500.0,0.00010958,2]
[352719434,1739272242024,-500.0,0.00010958,2]
[352719435,1739272242034,-500.0,0.00010958,2]
[352719436,1739272242045,-500.0,0.00010958,2]
[352719437,1739272242054,-500.0,0.00010958,2]
[352719438,1739272242063,-500.0,0.00010958,2]
[352719439,1739272242073,-500.0,0.00010958,2]
[352719440,1739272242083,-500.0,0.00010958,2]
[352719441,1739272242093,-500.0,0.00010958,2]
[352719442,1739272242103,-500.0,0.00010958,2]
[352719443,1739272242112,-500.0,0.00010958,2]
[352719444,1739272242122,-500.0,0.00010958,2]
[352719445,1739272242131,-500.0,0.00010958,2]
[352719446,1739272242140,-500.0,0.00010958,2]
[352719447,1739272242152,-500.0,0.00010958,2]
[352719448,1739272242161,-500.0,0.00010958,2]
[352719449,1739272242171,-500.0,0.00010958,2]
[352719450,1739272242180,-500.0,0.00010958,2]
[352719451,1739272242189,-506.03246176,0.00010958,2]
[352719452,1739272242199,-769.79,0.00010958,2]
[352719453,1739272242209,-1416.94,0.00010958,2]
[352719454,1739272242219,-500.0,0.00010958,2]
[352719455,1739272242228,-500.0,0.00010958,2]
[352719456,1739272242238,-1439.16,0.00010958,2]
[352719457,1739272242247,-500.0,0.00010958,2]
[352719458,1739272242257,-500.0,0.00010958,2]
[352719459,1739272242266,-500.0,0.00010958,2]
[352719460,1739272242276,-500.0,0.00010958,2]
[352719461,1739272242285,-558.43903286,0.00010958,2]
[352719462,1739272242294,-500.0,0.00010958,2]
[352719463,1739272242304,-500.0,0.00010958,2]
[352719464,1739272242313,-500.0,0.00010958,2]
[352719465,1739272242323,-500.72430006,0.00010958,2]
[352719466,1739272242333,-500.0,0.00010958,2]
[352719467,1739272242342,-500.0,0.00010958,2]
[352719468,1739272242352,-500.0,0.00010958,2]
[352719469,1739272242361,-500.0,0.00010958,2]
[352719470,1739272242371,-1206.54,0.00010958,2]
[352719471,1739272242381,-419.49403624,0.00010958,2]
[352719472,1739272242391,-500.0,0.00010958,2]
[352719473,1739272242401,-500.0,0.00010958,2]
[352719474,1739272242410,-500.0,0.00010958,2]
[352719475,1739272242420,-500.0,0.00010958,2]
[352719476,1739272242429,-500.0,0.00010958,2]
[352719477,1739272242439,-500.0,0.00010958,2]
[352719478,1739272242448,-500.0,0.00010958,2]
[352719479,1739272242458,-500.0,0.00010958,2]
[352719480,1739272242467,-500.0,0.00010958,2]
[352719481,1739272242477,-500.0,0.00010958,2]
[352719482,1739272242486,-500.0,0.00010958,2]
[352719483,1739272242495,-500.0,0.00010958,2]
[352719484,1739272242506,-683.21978765,0.00010958,2]
[352719485,1739272242523,-150.27021235,0.00010958,2]
[352719486,1739272242533,-270.5612618,0.00010958,2]
[352719487,1739272242545,-229.4387382,0.00010958,2]
[352719488,1739272242554,-500.0,0.00010958,2]
[352719489,1739272242564,-431.60451819,0.00010958,2]
[352719490,1739272242577,-68.39548181,0.00010958,2]
[352719491,1739272242586,-500.0,0.00010958,2]
[352719492,1739272242596,-500.0,0.00010958,2]
[352719493,1739272242605,-500.0,0.00010958,2]
[352719494,1739272242615,-500.0,0.00010958,2]
[352719495,1739272242624,-502.42323488,0.00010958,2]
[352719496,1739272242633,-500.0,0.00010958,2]
[352719497,1739272242643,-126.18128331,0.00010958,2]
[352719498,1739272242655,-373.81871669,0.00010958,2]
[352719499,1739272242665,-500.0,0.00010958,2]
[352719500,1739272242674,-1216.47653963,0.00010958,2]
[352719521,1739272243435,-274.34346037,0.00010958,2]
[352719522,1739272243445,-500.0,0.00010958,2]
[352719523,1739272243455,-500.0,0.00010958,2]
[352719524,1739272243465,-500.4338614,0.00010958,2]
[352719525,1739272243474,-500.0,0.00010958,2]
[352719526,1739272243484,-500.0,0.00010958,2]
[352719527,1739272243493,-500.0,0.00010958,2]
[352719528,1739272243504,-500.0,0.00010958,2]
[352719529,1739272243514,-682.68,0.00010958,2]
[352719530,1739272243524,-500.0,0.00010958,2]
[352719531,1739272243534,-500.0,0.00010958,2]
[352719532,1739272243543,-500.0,0.00010958,2]
[352719533,1739272243553,-500.0,0.00010958,2]
[352719534,1739272243564,-495.8922345,0.00010958,2]
[352719535,1739272243574,-500.0,0.00010958,2]
[352719536,1739272243583,-500.0,0.00010958,2]
[352719537,1739272243592,-2982.41,0.00010958,2]
[352719539,1739272243601,-500.0,0.00010958,2]
[352719541,1739272243610,-500.0,0.00010958,2]
[352719543,1739272243619,-500.0,0.00010958,2]
[352719545,1739272243628,-597.85141886,0.00010958,2]
[352719547,1739272243638,-500.0,0.00010958,2]
[352719549,1739272243648,-500.0,0.00010958,2]
[352719551,1739272243658,-500.0,0.00010958,2]
[352719552,1739272243667,-500.0,0.00010958,2]
[352719553,1739272243676,-500.0,0.00010958,2]
[352719554,1739272243685,-500.0,0.00010958,2]
[352719555,1739272243695,-5694.6,0.00010958,2]
[352719556,1739272243704,-500.0,0.00010958,2]
[352719557,1739272243714,-500.0,0.00010958,2]
[352719558,1739272243723,-500.0,0.00010958,2]
[352719559,1739272243732,-385.53547802,0.00010958,2]
[352719560,1739272243835,-114.46452198,0.00010958,2]
[352719561,1739272243845,-949.98,0.00010958,2]
[352719562,1739272243855,-500.0,0.00010958,2]
[352719563,1739272243864,-504.15171731,0.00010958,2]
[352719564,1739272243873,-2057.9,0.00010958,2]
[352719565,1739272243883,-500.0,0.00010958,2]
[352719566,1739272243892,-500.0,0.00010958,2]
[352719567,1739272243901,-500.0,0.00010958,2]
[352719568,1739272243911,-500.0,0.00010958,2]
[352719569,1739272243920,-500.0,0.00010958,2]
[352719570,1739272243929,-500.0,0.00010958,2]
[352719571,1739272243939,-500.0,0.00010958,2]
[352719572,1739272243948,-925.61,0.00010958,2]
[352719573,1739272243957,-500.0,0.00010958,2]
[352719574,1739272243967,-871.94,0.00010958,2]
[352719575,1739272243976,-500.0,0.00010958,2]
[352719576,1739272243986,-500.0,0.00010958,2]
[352719577,1739272243995,-500.90023982,0.00010958,2]
[352719578,1739272244008,-500.41417151,0.00010958,2]
[352719579,1739272244018,-500.0,0.00010958,2]
[352719580,1739272244028,-500.0,0.00010958,2]
[352719581,1739272244036,-500.0,0.00010958,2]
[352719582,1739272244047,-3000.97,0.00010958,2]
[352719583,1739272244058,-500.0,0.00010958,2]
[352719584,1739272244067,-500.0,0.00010958,2]
[352719585,1739272244076,-12460.07,0.00010958,2]
[352719586,1739272244088,-500.0,0.00010958,2]
[352719587,1739272244097,-500.0,0.00010958,2]
[352719588,1739272244107,-500.0,0.00010958,2]
[352719589,1739272244116,-500.0,0.00010958,2]
[352719590,1739272244125,-5485.62,0.00010958,2]
[352719591,1739272244134,-500.0,0.00010958,2]
[352719592,1739272244143,-500.0,0.00010958,2]
[352719593,1739272244152,-500.0,0.00010958,2]
[352719594,1739272244161,-501.42865002,0.00010958,2]
[352719595,1739272244170,-500.0,0.00010958,2]
[352719596,1739272244179,-3907.33,0.00010958,2]
[352719597,1739272244188,-500.0,0.00010958,2]
[352719598,1739272244197,-500.0,0.00010958,2]
[352719599,1739272244207,-500.0,0.00010958,2]
[352719600,1739272244216,-500.0,0.00010958,2]
[352719601,1739272244225,-500.0,0.00010958,2]
[352719602,1739272244234,-500.0,0.00010958,2]
[352719603,1739272244244,-500.0,0.00010958,2]
[352719604,1739272244255,-1100.59,0.00010958,2]
[352719605,1739272244265,-500.0,0.00010958,2]
[352719606,1739272244274,-519.02,0.00010958,2]
[352719607,1739272244283,-1105.86,0.00010958,2]
[352719608,1739272244292,-2013.07,0.00010958,2]
[352719609,1739272244301,-500.0,0.00010958,2]
[352719610,1739272244310,-500.0,0.00010958,2]
[352719611,1739272244319,-500.0,0.00010958,2]
[352719612,1739272244328,-500.0,0.00010958,2]
[352719613,1739272244337,-500.0,0.00010958,2]
[352719614,1739272244346,-1127.0,0.00010958,2]
[352719615,1739272244355,-500.0,0.00010958,2]
[352719616,1739272244364,-1439.97,0.00010958,2]
[352719617,1739272244373,-583.86,0.00010958,2]
[352719618,1739272244383,-500.0,0.00010958,2]
[352719619,1739272244392,-500.0,0.00010958,2]
[352719620,1739272244401,-500.0,0.00010958,2]
[352719621,1739272244410,-500.0,0.00010958,2]
[352719622,1739272244418,-500.0,0.00010958,2]
[352719623,1739272244428,-500.0,0.00010958,2]
[352719624,1739272244437,-502.74,0.00010958,2]
[352719625,1739272244446,-500.0,0.00010958,2]
[352719626,1739272244456,-502.74,0.00010958,2]
[352719627,1739272244465,-503.76361937,0.00010958,2]
[352719628,1739272244474,-502.74,0.00010958,2]
[352719629,1739272244484,-502.74,0.00010958,2]
[352719630,1739272244494,-502.74,0.00010958,2]
[352719631,1739272244505,-502.74,0.00010958,2]
[352719632,1739272244515,-502.74,0.00010958,2]
[352719633,1739272244524,-502.74,0.00010958,2]
[352719634,1739272244534,-840.42,0.00010958,2]
[352719635,1739272244544,-502.74,0.00010958,2]
[352719636,1739272244553,-502.74,0.00010958,2]
[352719637,1739272244562,-502.74,0.00010958,2]
[352719638,1739272244572,-502.74,0.00010958,2]
[352719639,1739272244582,-502.74,0.00010958,2]
[352719640,1739272244591,-500.0,0.00010958,2]
[352719641,1739272244601,-502.74,0.00010958,2]
[352719642,1739272244610,-502.74,0.00010958,2]
[352719643,1739272244619,-541.39,0.00010958,2]
[352719644,1739272244629,-500.0,0.00010958,2]
[352719645,1739272244639,-500.0,0.00010958,2]
[352719646,1739272244648,-500.0,0.00010958,2]
[352719647,1739272244657,-500.0,0.00010958,2]
[352719648,1739272244667,-500.0,0.00010958,2]
[352719649,1739272244676,-500.0,0.00010958,2]
[352719650,1739272244686,-500.0,0.00010958,2]
[352719651,1739272244695,-500.0,0.00010958,2]
[352719652,1739272244704,-500.0,0.00010958,2]
[352719653,1739272244714,-39553.44,0.00010958,2]
[352719654,1739272244723,-731.61,0.00010958,2]
[352719655,1739272244732,-1375.93,0.00010958,2]
[352719656,1739272244741,-500.0,0.00010958,2]
[352719657,1739272244752,-948.99,0.00010958,2]
[352719658,1739272244762,-500.0,0.00010958,2]
[352719659,1739272244771,-500.0,0.00010958,2]
[352719660,1739272244780,-500.0,0.00010958,2]
[352719661,1739272244790,-500.0,0.00010958,2]
[352719662,1739272244799,-500.0,0.00010958,2]
[352719663,1739272244809,-500.0,0.00010958,2]
[352719664,1739272244818,-1854.51,0.00010958,2]
[352719665,1739272244827,-500.0,0.00010958,2]
[352719666,1739272244836,-500.0,0.00010958,2]
[352719667,1739272244845,-530.53039241,0.00010958,2]
[352719668,1739272244855,-500.0,0.00010958,2]
[352719669,1739272244865,-500.0,0.00010958,2]
[352719670,1739272244875,-2023.69,0.00010958,2]
[352719671,1739272244886,-500.0,0.00010958,2]
[352719672,1739272244896,-500.0,0.00010958,2]
[352719673,1739272244906,-17317.43,0.00010958,2]
[352719674,1739272244916,-500.0,0.00010958,2]
[352719675,1739272244925,-500.0,0.00010958,2]
[352719676,1739272244935,-500.0,0.00010958,2]
[352719677,1739272244944,-500.0,0.00010958,2]
[352719678,1739272244954,-500.0,0.00010958,2]
[352719679,1739272244963,-500.0,0.00010958,2]
[352719680,1739272244973,-1240.75,0.00010958,2]
[352719681,1739272244982,-748.95,0.00010958,2]
[352719682,1739272244991,-500.0,0.00010958,2]
[352719683,1739272245002,-500.0,0.00010958,2]
[352719684,1739272245013,-1055.68,0.00010958,2]
[352719685,1739272245023,-500.0,0.00010958,2]
[352719686,1739272245032,-713.43,0.00010958,2]
[352719687,1739272245043,-500.0,0.00010958,2]
[352719688,1739272245052,-500.0,0.00010958,2]
[352719689,1739272245062,-755.27,0.00010958,2]
[352719690,1739272245071,-920.65,0.00010958,2]
[352719691,1739272245081,-500.0,0.00010958,2]
[352719692,1739272245222,-2302.61,0.00010958,2]
[352719693,1739272245232,-500.0,0.00010958,2]
[352719694,1739272245242,-500.0,0.00010958,2]
[352719695,1739272245251,-761.17,0.00010958,2]
[352719696,1739272245261,-500.0,0.00010958,2]
[352719697,1739272245270,-500.0,0.00010958,2]
[352719698,1739272245280,-500.0,0.00010958,2]
[352719699,1739272245289,-2445.58,0.00010958,2]
[352719700,1739272245299,-500.0,0.00010958,2]
[352719701,1739272245308,-500.0,0.00010958,2]
[352719702,1739272245318,-3314.75,0.00010958,2]
[352719703,1739272245327,-500.0,0.00010958,2]
[352719704,1739272245336,-500.0,0.00010958,2]
[352719705,1739272245346,-500.0,0.00010958,2]
[352719706,1739272245355,-333.12353233,0.00010958,2]
[352719707,1739272245364,-531.3,0.00010958,2]
[352719708,1739272245373,-500.0,0.00010958,2]
[352719709,1739272245382,-500.0,0.00010958,2]
[352719710,1739272245392,-756.96,0.00010958,2]
[352719711,1739272245402,-1394.34,0.00010958,2]
[352719712,1739272245411,-500.0,0.00010958,2]
[352719713,1739272245420,-500.0,0.00010958,2]
[352719714,1739272245429,-500.0,0.00010958,2]
[352719715,1739272245439,-500.0,0.00010958,2]
[352719716,1739272245448,-980.71,0.00010958,2]
[352719717,1739272245457,-1597.85,0.00010958,2]
[352719718,1739272245467,-500.0,0.00010958,2]
[352719719,1739272245476,-500.0,0.00010958,2]
[352719720,1739272245485,-1394.94,0.00010958,2]
[352719721,1739272245495,-500.0,0.00010958,2]
[352719722,1739272245504,-500.0,0.00010958,2]
[352719723,1739272245514,-5809.86,0.00010958,2]
[352719724,1739272245523,-1532.7,0.00010958,2]
[352719725,1739272245532,-500.0,0.00010958,2]
[352719726,1739272245541,-674.25,0.00010958,2]
[352719727,1739272245551,-500.0,0.00010958,2]
[352719728,1739272245560,-500.0,0.00010958,2]
[352719729,1739272245569,-663.02,0.00010958,2]
[352719730,1739272245578,-500.0,0.00010958,2]
[352719731,1739272245588,-234.42500691,0.00010958,2]
[352719732,1739272245597,-500.0,0.00010958,2]
[352719733,1739272245606,-500.0,0.00010958,2]
[352719734,1739272245615,-906.25,0.00010958,2]
[352719735,1739272245625,-500.0,0.00010958,2]
[352719736,1739272245634,-227.05357848,0.00010958,2]
[352719737,1739272245643,-946.74,0.00010958,2]
[352719738,1739272245652,-630.49,0.00010958,2]
[352719739,1739272245662,-500.0,0.00010958,2]
[352719740,1739272245671,-500.0,0.00010958,2]
[352719741,1739272245680,-526.69325163,0.00010958,2]
[352719742,1739272245689,-500.0,0.00010958,2]
[352719743,1739272245699,-2914.98,0.00010958,2]
[352719744,1739272245708,-879.02,0.00010958,2]
[352719745,1739272245717,-500.0,0.00010958,2]
[352719746,1739272245727,-649.18,0.00010958,2]
[352719747,1739272245736,-500.0,0.00010958,2]
[352719748,1739272245745,-577.67,0.00010958,2]
[352719749,1739272245756,-855.69,0.00010958,2]
[352719750,1739272245765,-532.20751231,0.00010958,2]
[352719751,1739272245774,-500.0,0.00010958,2]
[352719752,1739272245783,-500.0,0.00010958,2]
[352719753,1739272245793,-1951.14,0.00010958,2]
[352719754,1739272245802,-500.0,0.00010958,2]
[352719755,1739272245811,-500.0,0.00010958,2]
[352719756,1739272245821,-249.42083176,0.00010958,2]
[352719758,1739272245830,-500.0,0.00010958,2]
[352719760,1739272245839,-500.0,0.00010958,2]
[352719762,1739272245849,-500.0,0.00010958,2]
[352719764,1739272245858,-500.0,0.00010958,2]
[352719766,1739272245867,-500.0,0.00010958,2]
[352719768,1739272245877,-2747.8,0.00010958,2]
[352719769,1739272245887,-896.42,0.00010958,2]
[352719770,1739272245896,-1014.26,0.00010959,2]
[352719771,1739272245906,-845.22,0.00010959,2]
[352719772,1739272245916,-845.22,0.00010959,2]
[352719773,1739272245927,-563.48,0.00010959,2]
[352719774,1739272245936,-469.56,0.00010959,2]
[352719776,1739272245946,-10000.0,0.00011,2]
[352719778,1739272245956,-10000.0,0.00011,2]
[352719780,1739272245966,-10000.0,0.00011,2]
[352719782,1739272245975,-151.0,0.00011,2]
[352719784,1739272245984,-151.0,0.00011,2]
[352719786,1739272245994,-151.0,0.00011,2]
[352719787,1739272246005,-10000.0,0.00011,2]
[352719789,1739272246017,-10000.0,0.00011,2]
[352719790,1739272246026,-582.995,0.00011073,2]
[352719791,1739272246035,-176.911,0.00011088,2]
[352719792,1739272246045,-502.74,0.00011094,2]
[352719793,1739272246056,-502.74,0.00011094,2]
[352719794,1739272246066,-502.74,0.00011094,2]
[352719795,1739272246076,-502.74,0.00011094,2]
[352719796,1739272246087,-502.74,0.00011094,2]
[352719797,1739272246097,-502.74,0.00011094,2]
[352719798,1739272246106,-502.74,0.00011094,2]
[352719799,1739272246116,-502.74,0.00011094,2]
[352719800,1739272246125,-502.74601379,0.00011094,2]
[352719801,1739272246134,-500.0,0.00011095,2]
[352719802,1739272246143,-623.49,0.00011095,2]
[352719803,1739272246153,-500.0,0.00011095,2]
[352719804,1739272246162,-500.0,0.00011095,2]
[352719805,1739272246171,-577.36729288,0.00011095,2]
[352719806,1739272246180,-223.85792248,0.00011095,2]
[352719807,1739272246190,-500.0,0.00011095,2]
[352719808,1739272246199,-624.49,0.00011095,2]
[352719809,1739272246209,-500.0,0.00011095,2]
[352719810,1739272246218,-500.0,0.00011095,2]
[352719811,1739272246227,-500.0,0.00011095,2]
[352719812,1739272246237,-249.27131234,0.00011095,2]
[352719813,1739272246246,-500.0,0.00011095,2]
[352719814,1739272246256,-500.0,0.00011095,2]
[352719815,1739272246266,-500.0,0.00011095,2]
[352719816,1739272246275,-500.0,0.00011095,2]
[352719817,1739272246284,-627.02,0.00011095,2]
[352719818,1739272246293,-500.0,0.00011095,2]
[352719819,1739272246304,-391.17439117,0.00011095,2]
[352719820,1739272246313,-500.0,0.00011095,2]
[352719821,1739272246322,-500.0,0.00011095,2]
[352719822,1739272246332,-500.0,0.00011095,2]
[352719823,1739272246341,-500.0,0.00011095,2]
[352719824,1739272246351,-500.0,0.00011095,2]
[352719825,1739272246360,-703.22,0.00011095,2]
[352719826,1739272246369,-500.0,0.00011095,2]
[352719827,1739272246379,-500.0,0.00011095,2]
[352719828,1739272246388,-500.0,0.00011095,2]
[352719829,1739272246397,-500.0,0.00011095,2]
[352719830,1739272246407,-500.0,0.00011095,2]
[352719831,1739272246417,-500.0,0.00011095,2]